Cogmind - Beta 13 @@@ ROGUE MODE // 2024.05.04 @ 17:53:35 Player: NikedNOGsing_in_can't Result: Self-destructed Performance ------------- Evolutions (3) 1500 Regions Visited (10) 2000 Robots Destroyed (154) 770 Value Destroyed (5741) 5741 Prototype IDs (24) 480 Alien Tech Used (0) 0 Bonus (1882) 1882 TOTAL SCORE: 12373 Bonus ------- High Alert Combat Kills 842 Follower Combat Kills 356 Entered Garrisons 200 Used RIF Installer 500 Friendly Fire -16 Cogmind --------- Core Integrity 362/700 Matter 166/300 Energy 310/310 System Corruption 0% Temperature Cool (0) Movement Rolling (300) Ox14 Location -6/Proximity Caves Parts ------- > --- POWER (1) -------- Heavy Deuterium Engine > --- PROPULSION (4) --- Medium Treads Armored Wheel > --- UTILITY (5) ------ Improved Cooling System Cargo Storage Unit Improved Medium Armor Plating > --- WEAPON (3) ------- Heavy Battle Rifle KE Penetrator Heavy Flail > --- INVENTORY (30) --- Heavy Deuterium Engine Improved VTOL Module Advanced Heat Sink Large Storage Unit Compact Battery (200) Matter Compressor (250) Advanced Visual Processing Unit Improved Terrain Scanner Seismic Detector Hardened Medium Armor Plating Improved Shield Generator Relay Coupler [NC] (44) Relay Coupler [NC] (36) Relay Coupler [Duelist] (39) Relay Coupler [Sentry] (29) Dynamic Insulation System Trap Extractor (2/4 Dirty Bomb) Trap Extractor (4/4 Fire) Rainbow Chip Barrage Gun Gauss Rifle Advanced Assault Cannon Proton Missile Launcher Subdweller Shrapnel Launcher Remote Datajack Enhanced Flamer Enhanced Flamer Peak State ------------ > --- POWER ------------ Hybrid Antimatter Reactor > --- PROPULSION ------- Light Treads Light Treads Armored Wheel Improved Cesium-ion Thruster > --- UTILITY ---------- Cargo Storage Unit Medium Armor Plating Gun Armor Insulated Plating > --- WEAPON ----------- Advanced Beam Rifle Cooled Particle Cannon Gauss Rifle Flak Gun > --- INVENTORY -------- Deuterium Engine Light Treads Armored Treads Improved VTOL Module Cryofiber Web Improved Heat Sink Large Storage Unit Compact Battery Matter Compressor Advanced Visual Processing Unit Improved Terrain Scanner Seismic Detector Medium Armor Plating Improved Medium Armor Plating Improved Medium Armor Plating Improved Shield Generator Relay Coupler [NC] Relay Coupler [NC] Relay Coupler [Duelist] Relay Coupler [Sentry] Dynamic Insulation System Trap Extractor Trap Extractor Rainbow Chip Autogun Advanced EMP Blaster Subdweller Shrapnel Launcher Subdweller Shrapnel Launcher Remote Datajack Scythe [Rating: 58] Favorites ----------- Power Subdweller Power Source Engine Subdweller Power Source Power Core Nuclear Core Reactor Hybrid Antimatter Reactor Propulsion Light Treads Treads Light Treads Wheel Armored Wheel Flight Unit Improved VTOL Module Utility Cargo Storage Unit Device Improved Cooling System Storage Cargo Storage Unit Protection Gun Armor Weapon Advanced Beam Cannon Energy Gun Advanced Beam Rifle Energy Cannon Advanced Beam Cannon Ballistic Gun Gauss Rifle Ballistic Cannon Light Cannon Launcher Advanced EMP Blaster Special Weapon Mining Laser Impact Weapon Flail Slashing Weapon Scythe Build | -11 -10 -10 -8 -7 -7 -7 -7 -7 -7 -6 ------- Run | Yrd Mat Sub Mat Fac Gar Fac Low Low Zio Pro Slots Evolved 6 | . . . 4 2 . . . . . . Power . | . . . . . . . . . . . Propulsion 2 | . . . 2 . . . . . . . Utility 3 | . . . 2 1 . . . . . . Weapon 1 | . . . . 1 . . . . . . Parts Attached 168 | 7 16 19 47 4 13 31 8 17 6 . Power 8 | 1 . 3 1 . 1 2 . . . . Engine 6 | 1 . 3 . . 1 1 . . . . Core 1 | . . . 1 . . . . . . . Reactor 1 | . . . . . . 1 . . . . Propulsion 45 | 2 1 4 18 . 4 12 . 3 1 . Treads 30 | 2 1 4 12 . 2 7 . 2 . . Leg . | . . . . . . . . . . . Wheel 13 | . . . 5 . 2 4 . 1 1 . Hover . | . . . . . . . . . . . Flight 2 | . . . 1 . . 1 . . . . Utility 41 | 2 5 8 8 1 3 8 1 4 1 . Device 15 | 1 1 2 1 . 2 4 . 4 . . Storage 5 | 1 2 1 1 . . . . . . . Processor . | . . . . . . . . . . . Hackware . | . . . . . . . . . . . Protection 21 | . 2 5 6 1 1 4 1 . 1 . Artifact . | . . . . . . . . . . . Weapon 74 | 2 10 4 20 3 5 9 7 10 4 . Energy Gun 6 | . . . 3 1 . 1 . 1 . . Energy Cannon 17 | . 2 . 6 1 3 3 1 1 . . Ballistic Gun 19 | 2 4 . . 1 . 3 2 5 2 . Ballistic Cannon 5 | . 1 1 2 . . . 1 . . . Launcher 17 | . . 1 8 . 2 . 3 3 . . Special Weapon 1 | . 1 . . . . . . . . . Impact Weapon 7 | . 2 2 1 . . . . . 2 . Slashing Weapon 2 | . . . . . . 2 . . . . Piercing Weapon . | . . . . . . . . . . . Special Melee Weapon . | . . . . . . . . . . . Unidentified Prototypes 10 | . 1 1 4 . . 4 . . . . Corrupted Parts 1 | . . . . . . . . 1 . . System Corruption 4 | . . . . . . . . 4 . . Parts Lost 29 | . 1 2 12 . 2 5 1 1 5 . Power 3 | . . 1 . . 1 1 . . . . Propulsion 14 | . . 1 8 . . 2 . 1 2 . Utility 3 | . . . 1 . . . 1 . 1 . Weapon 9 | . 1 . 3 . 1 2 . . 2 . Highest Loss Streak 3 | . 1 1 3 . 1 2 1 1 3 . To Critical Strikes 1 | . . . . . . . . . 1 . Average Slot Usage (%) 84 | . 99 75 80 92 91 89 83 83 80 . Engine 7 | . 14 11 3 . 6 3 7 7 7 . Treads 18 | . 28 19 23 21 20 18 7 6 7 . Wheel 5 | . . . 6 7 7 8 15 15 14 . Device 4 | . 7 . 3 . 6 4 7 14 10 . Storage 6 | . 14 2 7 7 7 7 7 7 7 . Protection 13 | . 7 17 11 21 14 17 14 8 11 . Energy Gun 2 | . . . 4 7 7 6 . . . . Energy Cannon 8 | . 4 11 8 14 13 5 5 6 3 . Ballistic Gun 5 | . 4 . . 7 7 9 13 12 10 . Ballistic Cannon 1 | . 11 . 2 . . . . . . . Impact Weapon 4 | . 3 11 3 . . . . . 1 . Naked Turns . | . . . . . . . . . . . Heaviest Build 186 | 13 35 35 167 179 182 183 186 186 180 . Greatest Support 112 | 40 40 40 112 16 20 80 40 40 40 . Greatest Overweight (x) 60 | . . 1 10 11 14 60 4 14 14 . Average Overweight (x) 3 | . . . 3 11 11 10 4 4 4 . Largest Inventory Capacity 30 | 8 15 15 30 30 30 30 30 30 30 . Average Capacity 21 | 7 12 7 28 30 30 30 30 30 30 . Most Carried 30 | 5 15 15 30 29 30 30 30 30 30 . Average Carried 20 | 2 9 6 26 26 26 29 29 29 29 . Final Capacity 30 | 8 15 15 30 30 30 30 30 30 30 30 Final Carried 30 | 4 15 14 30 26 30 30 30 30 27 27 Class Distribution -------------------- 39% | Mutant 33% | Hauler-Tank 16% | Hauler-Mutant 9% | Scavenger-Tank Dominant Class ---------------- Mutant | -10/Materials Mutant | -10/Subcaves Hauler-Mutant | -8/Materials Hauler-Tank | -7/Factory Scavenger-Tank | -7/Garrison Hauler-Tank | -7/Factory Hauler-Tank | -7/Lower Caves Hauler-Tank | -7/Lower Caves Hauler-Tank | -7/Zion Hauler-Tank | -6/Proximity Caves Resources | -11 -10 -10 -8 -7 -7 -7 -7 -7 -7 -6 ----------- Run | Yrd Mat Sub Mat Fac Gar Fac Low Low Zio Pro Matter Collected 3996 | 186 154 766 864 . 702 500 301 518 5 . Remotely . | . . . . . . . . . . . Salvage Created 6578 | 98 325 708 2078 . 1133 823 545 802 66 . Parts 277 | 8 18 35 84 . 34 41 19 35 3 . Haulers Intercepted 5 | . 2 . 2 . . 1 . . . . Recyclers Shooed 2 | . 1 . 1 . . . . . . . Parts Field Recycled . | . . . . . . . . . . . Retrieved Matter . | . . . . . . . . . . . Parts Self-Destructed 50 | . . 11 . . . . 12 27 . . Prevented 10 | . . . . . . . 1 9 . . Kills | -11 -10 -10 -8 -7 -7 -7 -7 -7 -7 -6 ------- Run | Yrd Mat Sub Mat Fac Gar Fac Low Low Zio Pro Combat Hostiles Destroyed 129 | . 8 16 43 . 18 15 12 16 1 . Melee 11 | . . 7 3 . . 1 . . . . Guns 38 | . 5 . 7 . 8 11 3 3 1 . Cannons 34 | . 3 3 13 . 6 3 1 5 . . AOE 34 | . . . 15 . 4 . 7 8 . . Classes Destroyed 20 | 2 3 4 7 . 1 . . 3 . . Worker 5 | . . . 3 . . 2 . . . . Builder 2 | . . . 2 . . . . . . . Tunneler 2 | 2 . . . . . . . . . . Hauler 5 | . 2 . 2 . . 1 . . . . Recycler 6 | 1 1 . 4 . . . . . . . Minesweeper 1 | . . . . . . . . 1 . . Watcher 4 | . . . 3 . . 1 . . . . Swarmer 20 | . 6 . 4 . 4 2 2 2 . . Grunt 56 | . 2 1 23 . 9 8 6 7 . . Brawler 2 | . . . . . . . . 2 . . Duelist 4 | . . . 1 . 2 . 1 . . . Protector 3 | . . . 2 . . . . 1 . . Sentry 15 | . . 1 9 . . 2 2 1 . . Hunter 6 | . . . 3 . . . 1 2 . . Programmer 6 | . . . . . 3 3 . . . . Heavy 1 | . . . 1 . . . . . . . Artisan 1 | . . 1 . . . . . . . . Cobbler 1 | . . 1 . . . . . . . . Subdweller 14 | . . 14 . . . . . . . . Packrat 1 | . . . . . . . 1 . . . Thief 1 | . . . . . . . . 1 . . Thug 1 | . . . . . . . . . 1 . Best Kill Streak 17 | 3 2 2 17 . 7 3 7 5 1 . Combat Bots Only 7 | . 2 2 7 . 7 3 7 5 1 . Max Kills in Single Turn 5 | 1 1 1 3 . 2 1 2 5 1 . Gunslinging . | . . . . . . . . . . . Exploded 5 | . . . 3 . 2 . 2 5 . . Melee 1 | . . 1 1 . . 1 . . . . Uniques/NPCs Destroyed . | . . . . . . . . . . . Combat | -11 -10 -10 -8 -7 -7 -7 -7 -7 -7 -6 -------- Run | Yrd Mat Sub Mat Fac Gar Fac Low Low Zio Pro Hostile Shots Fired 713 | . 74 78 228 . 58 119 41 43 72 . Missed 203 | . 19 23 59 . 16 37 13 16 20 . Damage Taken 8253 | . 523 1185 2922 . 784 902 582 454 901 . Core 733 | . 88 74 233 . 51 89 88 18 92 . Absorbed by Shields 129 | . . . . . . . . 129 . . Ignored by Resistances 45 | . . . . . . 45 . . . . Core Remaining (%) 64 | 100 . 35 57 . . . . . . . Volleys Fired 374 | 9 41 29 94 . 68 50 24 53 6 . Largest 4 | 2 2 2 2 . 4 4 3 3 3 . Hottest 225 | 40 103 108 148 . 225 147 96 126 94 . Shots Fired 775 | 18 76 43 170 . 176 124 49 101 18 . Gun 357 | 18 31 . 45 . 98 78 24 45 18 . Cannon 365 | . 41 40 102 . 71 46 16 49 . . Launcher 49 | . . 3 23 . 7 . 9 7 . . Special 4 | . 4 . . . . . . . . . Kinetic 314 | 18 54 14 36 . 45 43 32 54 18 . Thermal 437 | . 22 29 117 . 131 81 15 42 . . Explosive 11 | . . . 11 . . . . . . . Electromagnetic 13 | . . . 6 . . . 2 5 . . Robot Hit Streak 26 | 5 10 15 17 . 26 12 11 9 7 . Robot Miss Streak 5 | 3 4 1 5 . 5 4 2 2 4 . Penetration Max 1 | . . . . . 1 1 . . . . Secondary Targets 1 | . . . . . . 1 . . . . Max Gunslinging Chain 1 | . . . . . . 1 . . . . Shots Hit Robots 528 | 9 45 69 131 . 103 87 26 50 8 . Core Hits 298 | 6 12 15 100 . 61 45 22 34 3 . Critical Kills 6 | . . 1 2 . 1 . 2 . . . Critical Parts Destroyed 16 | . . 7 6 . 1 . 1 . 1 . Critical Strikes 33 | . . 9 10 . 5 5 3 . 1 . Burn 8 | . . . 2 . 3 3 . . . . Meltdown 2 | . . . 1 . . . 1 . . . Destroy 5 | . . . . . 2 . 2 . 1 . Smash 16 | . . 9 7 . . . . . . . Sever 2 | . . . . . . 2 . . . . Melee Attacks 135 | . 5 83 34 . . 10 . . 3 . Impact 125 | . 5 83 34 . . . . . 3 . Slashing 10 | . . . . . . 10 . . . . Piercing . | . . . . . . . . . . . Sneak Attacks 6 | . 2 1 1 . . 2 . . . . Combat Hostiles . | . . . . . . . . . . . Follow-up Attacks . | . . . . . . . . . . . Damage Inflicted 16216 | 68 841 2001 5223 . 2681 2054 1138 1972 238 . Guns 4289 | 68 240 . 780 . 1030 1186 283 464 238 . Cannons 4633 | . 486 466 1221 . 988 619 163 690 . . Explosions 4446 | . . 75 2198 . 663 . 692 818 . . Melee 2812 | . 115 1460 992 . . 245 . . . . Ramming 36 | . . . 32 . . 4 . . . . Kinetic 5356 | 68 457 233 1159 . 1048 586 880 687 238 . Thermal 6034 | . 269 308 1624 . 1633 1219 133 848 . . Explosive 1095 | . . . 1095 . . . . . . . Electromagnetic 883 | . . . 321 . . . 125 437 . . Impact 2567 | . 115 1460 992 . . . . . . . Slashing 245 | . . . . . . 245 . . . . Piercing . | . . . . . . . . . . . Highest Corruption 6 | . . . . . 1 2 2 6 6 . Average Corruption 1 | . . . . . 1 1 2 3 6 . Corruption Purged . | . . . . . . . . . . . Corruption Blocked . | . . . . . . . . . . . Effects 58 | . . . . . 3 17 8 27 3 . Message Errors 12 | . . . . . . 2 3 6 1 . Matter Fused 13 | . . . . . . 6 1 5 1 . Heat Flow Errors 6 | . . . . . . 1 2 2 1 . Energy Discharges 6 | . . . . . 1 2 . 3 . . Parts Fused 2 | . . . . . 1 . 1 . . . Data Loss (minor) 7 | . . . . . . 3 . 4 . . Data Loss (major) 4 | . . . . . . 1 1 2 . . Misfires 3 | . . . . . 1 1 . 1 . . Alerts 2 | . . . . . . 1 . 1 . . Weapon Failures 3 | . . . . . . . . 3 . . Overload Shots 6 | . . . . . . 5 . 1 . . Effects 1 | . . . . . . 1 . . . . Energy Bleed 1 | . . . . . . 1 . . . . Overflow Damage 968 | . 32 282 531 . 19 41 . 63 . . Projectiles 103 | . . . . . 19 21 . 63 . . Explosions 78 | . . . 78 . . . . . . . Melee 787 | . 32 282 453 . . 20 . . . . Knockbacks 18 | . 4 9 4 . . . 1 . . . Impact 9 | . . 8 1 . . . . . . . Kinetic 9 | . 4 1 3 . . . 1 . . . Secondary . | . . . . . . . . . . . Self-Inflicted Damage 265 | . . . 141 . . . 86 38 . . Shots 11 | . . . 7 . . . 2 2 . . Rammed 4 | . . . 3 . . 1 . . . . Targets Rammed 4 | . . . 3 . . 1 . . . . Kicked . | . . . . . . . . . . . Crushed . | . . . . . . . . . . . Highest Temperature 445 | . 367 18 440 . 445 174 74 216 108 . Average Temperature 124 | . 127 11 125 . 161 39 41 96 44 . Received Heat Transfer 2345 | . 120 147 1314 . 171 234 144 80 135 . Effects 19 | . 2 . 2 . 15 . . . . . Shutdowns 3 | . . . 1 . 2 . . . . . Energy Bleed 2 | . . . 1 . 1 . . . . . Interference 13 | . 1 . . . 12 . . . . . Short Circuit 1 | . 1 . . . . . . . . . Siege Activations . | . . . . . . . . . . . Robots Corrupted 1 | . . . 1 . . . . . . . Combat Hostiles 1 | . . . 1 . . . . . . . Parts Fried 15 | . 2 7 5 . 1 . . . . . Impact Corruptions 26 | . 2 11 13 . . . . . . . Robots Melted 2 | . . . 1 . . . 1 . . . Combat Hostiles 2 | . . . 1 . . . 1 . . . Parts Melted 17 | . . . 6 . 5 5 1 . . . Heat Transferred 10760 | . 481 555 3348 . 3071 2109 185 1011 . . Parts Sabotaged . | . . . . . . . . . . . Parts Stolen . | . . . . . . . . . . . Parts Stripped . | . . . . . . . . . . . Power Chain Reactions 3 | . . . 1 . . . . 2 . . Alert | -11 -10 -10 -8 -7 -7 -7 -7 -7 -7 -6 ------- Run | Yrd Mat Sub Mat Fac Gar Fac Low Low Zio Pro Peak Influence 1240 | 15 150 . 995 426 1240 695 . . . . Initial 651 | . 9 . . 426 298 651 . . . . Average 436 | 6 46 . 429 426 722 531 . . . . Maximum Alert Level 4 | . . . 3 2 4 2 . . . . Low Security (%) 31 | 100 100 . 37 . . . . . . . Level 1 5 | . . . 2 . 17 4 . . . . Level 2 48 | . . . 43 100 28 95 . . . . Level 3 13 | . . . 16 . 45 . . . . . Level 4 1 | . . . . . 8 . . . . . Level 5 . | . . . . . . . . . . . High Security . | . . . . . . . . . . . Max Security . | . . . . . . . . . . . Squads Dispatched 19 | . 2 . 10 . . 6 . 1 . . Investigation 7 | . 2 . 2 . . 3 . . . . Extermination 2 | . . . . . . 2 . . . . Reinforcement 5 | . . . 4 . . 1 . . . . Assault 3 | . . . 2 . . . . 1 . . Garrison 2 | . . . 2 . . . . . . . Intercept . | . . . . . . . . . . . Searches Triggered . | . . . . . . . . . . . Construction Impeded 1 | . . . 1 . . . . . . . Haulers Reinforced 1 | . . . . . . 1 . . . . Active Scanning Responses . | . . . . . . . . . . . Cargo Convoy Interrupts . | . . . . . . . . . . . Stealth | -11 -10 -10 -8 -7 -7 -7 -7 -7 -7 -6 --------- Run | Yrd Mat Sub Mat Fac Gar Fac Low Low Zio Pro Distress Signals 5 | . 2 . 3 . . . . . . . Communications Jammed . | . . . . . . . . . . . Distress Signals . | . . . . . . . . . . . Times Spotted 194 | . 20 25 62 . 28 20 12 19 8 . Peak Tracking Total 11 | . 4 6 7 . 11 3 7 8 5 . Tactical Retreats 15 | . 2 2 3 . 2 3 . . 3 . Traps | -11 -10 -10 -8 -7 -7 -7 -7 -7 -7 -6 ------- Run | Yrd Mat Sub Mat Fac Gar Fac Low Low Zio Pro Traps Triggered 7 | . 2 1 1 . 2 1 . . . . Indirectly . | . . . . . . . . . . . Trap Hack Attempts . | . . . . . . . . . . . Triggered . | . . . . . . . . . . . Disarmed . | . . . . . . . . . . . Reprogrammed . | . . . . . . . . . . . Reused 1 | . . . 1 . . . . . . . Traps Extracted . | . . . . . . . . . . . Installed 1 | . . . 1 . . . . . . . Triggered 2 | . . . 1 . 1 . . . . . Most Traps Carried 6 | . . 2 2 1 1 1 1 6 6 . Machines | -11 -10 -10 -8 -7 -7 -7 -7 -7 -7 -6 ---------- Run | Yrd Mat Sub Mat Fac Gar Fac Low Low Zio Pro Machines Disabled 12 | . . 1 6 . . . 4 1 . . Max in Single Turn 3 | . . 1 2 . . . 3 1 . . Garrison Access 1 | . . . 1 . . . . . . . Machines Repaired . | . . . . . . . . . . . Machines Dismantled . | . . . . . . . . . . . Machines Sabotaged . | . . . . . . . . . . . Overloaded Fab Kills . | . . . . . . . . . . . Hacking | -11 -10 -10 -8 -7 -7 -7 -7 -7 -7 -6 --------- Run | Yrd Mat Sub Mat Fac Gar Fac Low Low Zio Pro Machines Accessed 24 | . 5 1 6 1 3 8 . . . . Terminals 16 | . 5 . 3 . 3 5 . . . . Fabricators 2 | . . . . . . 2 . . . . Repair Stations . | . . . . . . . . . . . Recycling Units 2 | . . . 1 . . 1 . . . . Scanalyzers 1 | . . . 1 . . . . . . . Garrison Access 2 | . . . 1 1 . . . . . . Total Hacks 65 | . 14 1 21 2 6 21 . . . . Successful 26 | . 3 1 12 1 1 8 . . . . Failed 39 | . 11 . 9 1 5 13 . . . . Catastrophic 10 | . 1 . 2 . 1 6 . . . . Database Lockouts . | . . . . . . . . . . . Manual 15 | . 2 . 5 . . 8 . . . . Terminals 42 | . 14 . 9 . 6 13 . . . . Fabricators 6 | . . . . . . 6 . . . . Repair Stations . | . . . . . . . . . . . Recycling Units 7 | . . . 5 . . 2 . . . . Scanalyzers 6 | . . . 6 . . . . . . . Garrison Access 3 | . . . 1 2 . . . . . . Terminal Hacks 11 | . 3 1 3 . 1 3 . . . . Part Schematic 1 | . . . . . . 1 . . . . Robot Analysis 1 | . 1 . . . . . . . . . Prototype ID Bank 2 | . . . 1 . . 1 . . . . Branch Access Points 1 | . . . . . . 1 . . . . Emergency Access Points 1 | . . . . . 1 . . . . . Alert Level 1 | . 1 . . . . . . . . . Hauler Manifests 2 | . 1 . 1 . . . . . . . Zone Layout 1 | . . . 1 . . . . . . . Derelict Proto ID Bank 1 | . . 1 . . . . . . . . Fabricator Hacks 4 | . . . . . . 4 . . . . Network Status 1 | . . . . . . 1 . . . . Load Schematic 2 | . . . . . . 2 . . . . Build 1 | . . . . . . 1 . . . . Repair Station Hacks . | . . . . . . . . . . . Recycling Unit Hacks 1 | . . . 1 . . . . . . . Retrieve Components 1 | . . . 1 . . . . . . . Scanalyzer 5 | . . . 5 . . . . . . . Insert Component 2 | . . . 2 . . . . . . . Analyze 3 | . . . 3 . . . . . . . Garrison Access Hacks 2 | . . . 1 1 . . . . . . Unlock Access 1 | . . . . 1 . . . . . . Seal Access 1 | . . . 1 . . . . . . . Unauthorized Hacks 3 | . . . 2 . . 1 . . . . Terminals 1 | . . . . . . 1 . . . . Botnet 1 | . . . . . . 1 . . . . Fabricators . | . . . . . . . . . . . Repair Stations . | . . . . . . . . . . . Recycling Units 2 | . . . 2 . . . . . . . Reject 1 | . . . 1 . . . . . . . Mask 1 | . . . 1 . . . . . . . Scanalyzers . | . . . . . . . . . . . Garrison Access . | . . . . . . . . . . . Data Cores Recovered . | . . . . . . . . . . . Used . | . . . . . . . . . . . Hacking Detections 21 | . 5 . 4 1 3 8 . . . . Full Trace Events 7 | . 2 . 1 . 1 3 . . . . Feedback Events . | . . . . . . . . . . . Feedback Blocked . | . . . . . . . . . . . Robot Schematics Acquired . | . . . . . . . . . . . Robots Built . | . . . . . . . . . . . Authchips . | . . . . . . . . . . . Time . | . . . . . . . . . . . Total Robot Build Rating . | . . . . . . . . . . . Part Schematics Acquired 3 | . . . 2 . . 1 . . . . Parts Built 2 | . . . . . . 2 . . . . Authchips . | . . . . . . . . . . . Time 84 | . . . . . . 84 . . . . Total Part Build Rating 8 | . . . . . . 8 . . . . Parts Repaired . | . . . . . . . . . . . Time . | . . . . . . . . . . . Parts Recycled . | . . . . . . . . . . . Recycled Matter . | . . . . . . . . . . . Retrieved Matter . | . . . . . . . . . . . Retrieved Components 9 | . . . 9 . . . . . . . Parts Scanalyzed 2 | . . . 2 . . . . . . . Part Schematics Acquired 2 | . . . 2 . . . . . . . Parts Damaged . | . . . . . . . . . . . Bothacking | -11 -10 -10 -8 -7 -7 -7 -7 -7 -7 -6 ------------ Run | Yrd Mat Sub Mat Fac Gar Fac Low Low Zio Pro Used RIF Installer 1 | . . . . . 1 . . . . . Robots Hacked . | . . . . . . . . . . . Non-combat . | . . . . . . . . . . . Combat . | . . . . . . . . . . . Robot Hacks Applied . | . . . . . . . . . . . Relay Couplers Released . | . . . . . . . . . . . Fabnet Peak Effective % . | . . . . . . . . . . . Robots Rewired 2 | . . . . . . . . 2 . . Allies Hacked . | . . . . . . . . . . . Hacks Repelled . | . . . . . . . . . . . Allies | -11 -10 -10 -8 -7 -7 -7 -7 -7 -7 -6 -------- Run | Yrd Mat Sub Mat Fac Gar Fac Low Low Zio Pro Total Allies 4 | . . . . . 2 . . 2 . . Largest Group 2 | . . . . . 2 . . 2 . . Highest-Rated Group 175 | . . . . . 175 . . 48 . . Highest-Rated Ally 95 | . . . . . 95 . . 32 . . Total Orders . | . . . . . . . . . . . Ally Attacks 25 | . . . . . 15 . . 10 . . Total Damage 986 | . . . . . 738 . . 248 . . Kills 12 | . . . . . 10 . . 2 . . Allies Corrupted . | . . . . . . . . . . . Allies Melted . | . . . . . . . . . . . Intel | -11 -10 -10 -8 -7 -7 -7 -7 -7 -7 -6 ------- Run | Yrd Mat Sub Mat Fac Gar Fac Low Low Zio Pro Robot Analysis Total 1 | . 1 . . . . . . . . . Derelict Logs Recovered 3 | . . 1 . . . . 1 1 . . Drone Launches . | . . . . . . . . . . . Drone Recoveries . | . . . . . . . . . . . Exploration | -11 -10 -10 -8 -7 -7 -7 -7 -7 -7 -6 ------------- Run | Yrd Mat Sub Mat Fac Gar Fac Low Low Zio Pro Turns Passed 13785 | 121 1323 3798 2417 61 1313 2185 1052 1280 235 . Spaces Moved 5645 | 52 501 1977 735 21 358 708 542 637 114 . Core 3 | 2 . . . . . 1 . . . . Treads 2894 | 50 501 1977 358 . 1 7 . . . . Legs . | . . . . . . . . . . . Wheels 2748 | . . . 377 21 357 700 542 637 114 . Hover . | . . . . . . . . . . . Flight . | . . . . . . . . . . . Fastest Speed 50 | 50 160 160 160 265 250 155 155 155 155 . Average Speed 192 | 155 160 171 235 265 266 251 155 169 158 . Slowest Speed 3050 | 160 160 260 800 265 810 3050 155 300 300 . Overloaded Moves . | . . . . . . . . . . . Propulsion Burnouts . | . . . . . . . . . . . Robots Hopped . | . . . . . . . . . . . Cave-ins Triggered . | . . . . . . . . . . . Exploration Rate (%) 38 | 4 83 59 52 1 53 20 74 64 14 4 Regions Visited 10 Branch Regions 5 Pre-discovered Areas 2 | . . 1 . . . . 1 . . . Known Exits Taken 2 | . . . . 1 . 1 . . . . Unknown Exits Taken 7 | 1 1 1 1 . . . 1 1 1 . Scrap Searched 19 | . . 14 . . . . 2 3 . . Spaces Dug 24 | . 6 2 4 . . 7 . 2 3 . Terrain Destroyed 325 | . 6 39 156 . 46 9 44 21 4 . Melee 13 | . 2 1 4 . . 3 . . 3 . Projectile 31 | . 4 1 10 . . 6 . 9 1 . AOE 281 | . . 37 142 . 46 . 44 12 . . Terrain Rammed . | . . . . . . . . . . . Walls Destroyed . | . . . . . . . . . . . Machines Disabled . | . . . . . . . . . . . Actions | -11 -10 -10 -8 -7 -7 -7 -7 -7 -7 -6 --------- Run | Yrd Mat Sub Mat Fac Gar Fac Low Low Zio Pro Total 7598 | 75 930 2224 1148 26 586 1003 712 742 152 . Wait 1059 | 3 339 80 182 1 127 160 129 22 16 . Move 5636 | 51 500 1976 735 21 356 707 541 636 113 . Hop . | . . . . . . . . . . . Pick Up 108 | 5 18 17 35 . 8 14 5 2 4 . Fast Attach 37 | 6 1 4 10 . 2 9 . 5 . . Attach 35 | 1 1 2 14 4 2 6 1 1 3 . Detach 2 | . . . . . . 2 . . . . Swap 97 | . 14 13 24 . 9 16 7 11 3 . Drop 87 | . 11 14 17 . 4 28 5 4 4 . Fire 374 | 9 41 29 94 . 68 50 24 53 6 . Melee 135 | . 5 83 34 . . 10 . . 3 . Ram 1 | . . . 1 . . . . . . . Kick . | . . . . . . . . . . . Crush 2 | . . . 1 . . 1 . . . . Escape Stasis 10 | . . . . . 10 . . . . . Rewire 8 | . . . . . . . . 8 . . Trap 1 | . . . 1 . . . . . . . Miscellaneous 6 | . . 6 . . . . . . . . Route ------- -11/Scrapyard -10/Materials (discovered 4 exits: [*Mat x2] / [*Min] / *Sub) -10/Subcaves (discovered 2 exits: *Mat x2) -8/Materials (discovered 2 exits: *Fac x2) -7/Factory -7/Garrison -7/Factory (discovered 4 exits: [*Fac] / Sto / *Low x2) -7/Lower Caves -7/Lower Caves -7/Zion -6/Proximity Caves History --------- Turn | Location | Event 39 | -11/Scrapyard | Discovered new exit (range 12) 122 | -11/Scrapyard | Entered Materials 296 | -10/Materials | Discovered new exit (range 5) 310 | -10/Materials | Build established: Mutant 776 | -10/Materials | Discovered new exit (range 16) 1080 | -10/Materials | Discovered new exit (range 11) 1438 | -10/Materials | Discovered new exit (range 5) 1445 | -10/Materials | Entered Subcaves 1733 | -10/Subcaves | Shifting Twisted Machinery released Sub. Optics 1742 | -10/Subcaves | Shifting Twisted Machinery released Spk. Treads 1864 | -10/Subcaves | Discovered new exit (range 10) 2055 | -10/Subcaves | A Subdweller sparked back to life 2055 | -10/Subcaves | A Subdweller sparked back to life 2070 | -10/Subcaves | Shifting Twisted Machinery released Sub. Beam Cannon 2205 | -10/Subcaves | Found Prototype Protection 2205 | -10/Subcaves | Identified Gun Armor 2207 | -10/Subcaves | Attached Gun Armor, gained temporary slots: Weapon x2 2532 | -10/Subcaves | Shifting Twisted Machinery released Sub. Shrapnel Launcher 2587 | -10/Subcaves | Discovered new exit (range 6) 3479 | -10/Subcaves | Core integrity fell below 50% 3644 | -10/Subcaves | Learned location of Zion (-7) 3644 | -10/Subcaves | Met a Zionite searching for "candidates" 3746 | -10/Subcaves | Visited 4L-MR0's lab 3760 | -10/Subcaves | Found Rainbow Chip 3949 | -10/Subcaves | Learned Materials security intel 5243 | -10/Subcaves | Entered Materials 5243 | -8/Materials | Evolved 4 slots: Propulsion x2, Utility x2 5775 | -8/Materials | Build established: Hauler-Mutant 6091 | -8/Materials | Discovered new exit (range 16) 6142 | -8/Materials | Garrison activated, responded to threat 6221 | -8/Materials | Lost 3 parts (2n1u) 6252 | -8/Materials | Destroyed 7 combat bots 6443 | -8/Materials | First assault squad dispatched 6482 | -8/Materials | Garrison activated, responded to threat 6516 | -8/Materials | Lost 3 parts (2n1w) 7604 | -8/Materials | Discovered new exit (range 8) 7660 | -8/Materials | Entered Factory 7660 | -7/Factory | Evolved 2 slots: Utility x1, Weapon x1 7721 | -7/Factory | Identified exit to Garrison 7721 | -7/Factory | Entered Garrison 7789 | -7/Garrison | Triggered checkpoint 7988 | -7/Garrison | Installed Relay Interface Framework 8166 | -7/Garrison | Build established: Scavenger-Tank 8242 | -7/Garrison | Found embedded Infiltrators 8297 | -7/Garrison | Triggered checkpoint 8323 | -7/Garrison | Triggered checkpoint 8333 | -7/Garrison | Triggered checkpoint 8374 | -7/Garrison | Destroyed 7 combat bots 8661 | -7/Garrison | Triggered checkpoint 8999 | -7/Garrison | Discovered new exit (range 13) 9034 | -7/Garrison | Entered Factory 9791 | -7/Factory | Build established: Hauler-Tank 10067 | -7/Factory | Discovered new exit (range 9) 10670 | -7/Factory | Fabricated Med. Treads? 11072 | -7/Factory | Identified exit to Storage 11072 | -7/Factory | Identified exit to Lower Caves 11219 | -7/Factory | Entered Lower Caves 11220 | -7/Lower Caves | Encountered a Warlord checkpoint 11604 | -7/Lower Caves | Attracted the attention of an 0b10 checkpoint 11720 | -7/Lower Caves | Attracted the attention of an 0b10 base 11763 | -7/Lower Caves | Destroyed 7 combat bots 12186 | -7/Lower Caves | Discovered new exit (range 13) 12271 | -7/Lower Caves | Entered another Lower Caves area 12574 | -7/Lower Caves | Learned 8 Factory zone layouts 12735 | -7/Lower Caves | Discovered new exit (range 5) 13177 | -7/Lower Caves | Attracted the attention of an 0b10 outpost 13551 | -7/Lower Caves | Entered Zion 13652 | -7/Zion | System corruption cleaned by Quarantine Array 13658 | -7/Zion | RIF detected upon attempting to enter Zion 13658 | -7/Zion | Attacked by Zionites 13658 | -7/Zion | Spotted 3P-HWX(B) 13658 | -7/Zion | Spotted QW-I02(B) 13720 | -7/Zion | Discovered new exit (range 10) 13786 | -7/Zion | Entered Proximity Caves 13786 | -6/Proximity Caves | Self-destructed Last Messages --------------- 13736_ Destroyed Lgt. Angular Momentum Engine. 13740_ Slug penetrates BU-YF5(g). 13743_ Slug penetrates Wall. 13746_ Slug penetrates BU-YF5(g). 13746_ Critical hit (Burn: +37). 13749_ BU-YF5(g) destroyed. 13749_ Slug penetrates 2S-UHN(z). 13771_ Slug penetrates QW-I02(B). 13771_ Slug penetrates Wall. 13773_ Arm. Wheel destroyed. 13773_ 3P-HWX(B) suffers critical hit (Destroy). 13775_ Critical hit (Destroy). 13777_ Slug penetrates 3P-HWX(B). 13778_ Penetrated by Slug. 13778_ Critical hit (Destroy). 13778_ Arm. Huge Wheel destroyed. 13780_ Imp. Medium Armor Plating destroyed. 13786_ Knocked back. LOCATION=UNKNOWN GOAL=ESCAPE Map ----- +----------------------------------------------------+ | ?????????????????????????????????????????????????? | | ?????????????????????????????????????????????????? | | ?????????????????????????????????????????????????? | | ?????????????????????????????????????????????????? | | ?????????????????????????????????????????????????? | | ?????????????????????????????????????????????????? | | ?????????????????????????????????????????????????? | | ?????????????????????????????????????????????????? | | ?????????????????????????????????????????????????? | | ?????????????????????????????????????????????????? | | ?????????????????????????????????????????????????? | | ?????????????????????????????????????????????????? | | ???????????????????????????????##????????????????? | | ???????????????????????????##?# ??????????????? | | ?????????????????????????? ## ??????????????? | | ?????????????????????????? ???????????????? | | ?????????????????????????? ????????????????? | | ?????????????????????????? ????????????????? | | ?????????????????????????? ?????????????????? | | ?????????????????????????? ??????????????????? | | ?????????????????????????? ???????????????????? | | ???????????????????????### ????????????????????? | | ??????????????????????## #????? #???????????? | | ??????????????????????# ### #???????????? | | ??????????????????????# #???????????? | | ??????????????????????# @ #???????????? | | ??????????????????????# #???????????? | | ??????????????????????# ###???????????? | | ??????????????????????## ##?????????????? | | ???????????????????????## ##??????????????? | | ????????????????????????# ##???????????????? | | ???????????????????????? ##????????????????? | | ???????????????????????? #?????????????????? | | ???????????????????????? ?????????????????? | | ???????????????????????? ????????????????? | | ???????????????????????? ???????????????? | | ???????????????????????? #???????????????? | | ????????????????????????# ####???????????????? | | ?????????????????????????######??????????????????? | | ?????????????????????????????????????????????????? | | ?????????????????????????????????????????????????? | | ?????????????????????????????????????????????????? | | ?????????????????????????????????????????????????? | | ?????????????????????????????????????????????????? | | ?????????????????????????????????????????????????? | | ?????????????????????????????????????????????????? | | ?????????????????????????????????????????????????? | | ?????????????????????????????????????????????????? | | ?????????????????????????????????????????????????? | | ?????????????????????????????????????????????????? | +----------------------------------------------------+ Best States ------------- Heat Dissipation 61 Energy Generation 18 Energy Capacity 1100 Matter Stores 300 Matter Capacity 300 Sight Range 16 Terrain Scan Density 10 Base Temperature (-) 100 EM Shielding 2 Armor Coverage 800 Resistance: EM 15 Evasion (%) 40 Recoil Reduction 4 Trap Extractor Capacity 4 Item Schematics ----------------- Imp. Medium Armor Plating | -8/Materials | Scanalyzed Med. Treads | -8/Materials | Scanalyzed Imp. Particle Charger | -7/Factory | Hacked Robot Schematics ------------------ None Fabricated ------------ Med. Treads | x2 | -7/Factory Alien Tech Used ----------------- None Achievements -------------- None Challenges ------------ None Game ------ Seed WaveHoverLattice Manual? 0 Play Time 02:01:03 Cumulative 70.7 hours Start 2024.05.02 @ 18:51:09 End 2024.05.04 @ 17:53:35 Sessions 7 Manual Loads 0 Difficulty Rogue Special Mode None Game No. 37 Rogue 37 Adventurer 0 Explorer 0 Win Type - Total 0 Types 0/0/0/0/0/0/0/0/0 Lore% 42 Gallery% 54 Achievement% 41 Wizard Run 0 Options --------- Layout 1 ASCII 0 Keyboard 0 Movement Mouse Keybinds 0 Fullscreen 1 Font 24/Smallcaps Map View 50x35 Zoom Use 0% Tactical HUD 1 Map Filters NONE Filters NONE Steam 1 RUN: 9d9b7ddf-03ce-4dca-b8b4-c26deab0bbf7